bitfinex/quotes_BTCUSD_20230905
["timestamp","ask_amount","ask_price","bid_price","bid_amount"]
[1693955624150,0.17839683,25779.0,25778.0,5.51318067]
[1693955624284,0.17839683,25779.0,25778.0,5.45182373]
[1693955624488,0.17839683,25779.0,25778.0,5.45116373]
[1693955624817,0.17839683,25779.0,25778.0,5.45080373]
[1693955625005,0.17839683,25779.0,25778.0,5.45116373]
[1693955625207,0.17839683,25779.0,25778.0,5.45200373]
[1693955625410,0.17839683,25779.0,25778.0,5.45230373]
[1693955625622,0.17839683,25779.0,25778.0,5.45224373]
[1693955625746,0.17839683,25779.0,25778.0,4.75260373]
[1693955625950,0.17839683,25779.0,25778.0,4.75248373]
[1693955626453,0.17839683,25779.0,25778.0,4.75254373]
[1693955626623,0.17839683,25779.0,25778.0,4.75236373]
[1693955626824,0.17839683,25779.0,25778.0,4.75254373]
[1693955627020,0.17839683,25779.0,25778.0,4.75278373]
[1693955627402,0.17839683,25779.0,25778.0,4.75284373]
[1693955627602,0.17839683,25779.0,25778.0,4.75296373]
[1693955628080,0.17839683,25779.0,25778.0,4.75302373]
[1693955628288,0.17839683,25779.0,25778.0,4.75296373]
[1693955628489,0.17839683,25779.0,25778.0,4.75290373]
[1693955628689,0.17839683,25779.0,25778.0,4.75224373]
[1693955628954,0.17839683,25779.0,25778.0,4.75212373]
[1693955629350,0.17839683,25779.0,25778.0,4.75218373]
[1693955629680,0.17839683,25779.0,25778.0,4.75752373]
[1693955629886,0.17839683,25779.0,25778.0,4.76322373]
[1693955630102,0.17839683,25779.0,25778.0,4.76022373]
[1693955630281,0.17839683,25779.0,25778.0,4.76046373]
[1693955630454,0.17839683,25779.0,25778.0,5.13511248]
[1693955630660,0.17839683,25779.0,25778.0,5.13469248]
[1693955630863,0.17839683,25779.0,25778.0,5.13499248]
[1693955631070,0.17839683,25779.0,25778.0,5.13487248]
[1693955631469,0.17839683,25779.0,25778.0,5.13535248]
[1693955631675,0.17839683,25779.0,25778.0,5.13529248]
[1693955632044,0.17839683,25779.0,25778.0,5.13433248]
[1693955632248,0.17839683,25779.0,25778.0,5.13457248]
[1693955632446,0.17839683,25779.0,25778.0,5.13469248]
[1693955632663,0.17839683,25779.0,25778.0,5.13481248]
[1693955633038,0.17839683,25779.0,25778.0,5.13475248]
[1693955633231,0.17839683,25779.0,25778.0,5.13205248]
[1693955633436,0.17839683,25779.0,25778.0,5.13145248]
[1693955633729,0.17839683,25779.0,25778.0,5.13055248]
[1693955633926,0.17839683,25779.0,25778.0,5.13085248]
[1693955634199,0.17839683,25779.0,25778.0,5.13043248]
[1693955634392,0.17839683,25779.0,25778.0,5.12455248]
[1693955634602,0.17839683,25779.0,25778.0,5.12425248]
[1693955634807,0.17839683,25779.0,25778.0,5.12527248]
[1693955635023,0.17839683,25779.0,25778.0,5.21809622]
[1693955635231,0.17839683,25779.0,25778.0,5.21815622]
[1693955635447,0.17839683,25779.0,25778.0,5.21809622]
[1693955635646,0.17839683,25779.0,25778.0,5.21821622]
[1693955635851,0.17839683,25779.0,25778.0,5.21791622]
[1693955635983,0.17839683,25779.0,25778.0,5.21785622]
[1693955636192,0.17839683,25779.0,25778.0,5.21791622]
[1693955636657,0.17839683,25779.0,25778.0,5.21785622]
[1693955636859,0.17839683,25779.0,25778.0,5.21779622]
[1693955637278,0.17839683,25779.0,25778.0,5.21767622]
[1693955637484,0.17839683,25779.0,25778.0,5.21779622]
[1693955637691,0.17839683,25779.0,25778.0,5.21545622]
[1693955637847,0.17839683,25779.0,25778.0,5.21539622]
[1693955638062,0.17839683,25779.0,25778.0,5.21545622]
[1693955638231,0.17839683,25779.0,25778.0,5.21533622]
[1693955638603,0.17839683,25779.0,25778.0,5.12233248]
[1693955638805,0.17839683,25779.0,25778.0,5.12239248]
[1693955638981,0.17839683,25779.0,25778.0,5.12185248]
[1693955639190,0.17839683,25779.0,25778.0,5.12203248]
[1693955639403,0.17839683,25779.0,25778.0,5.12197248]
[1693955639632,0.17839683,25779.0,25778.0,5.12173248]
[1693955639830,0.17839683,25779.0,25778.0,5.12191248]
[1693955639983,0.17839683,25779.0,25778.0,5.12269248]
[1693955640180,0.17839683,25779.0,25778.0,5.12353248]
[1693955640413,0.17839683,25779.0,25778.0,5.12359248]
[1693955640604,0.17839683,25779.0,25778.0,5.12383248]
[1693955640966,0.17839683,25779.0,25778.0,5.12377248]
[1693955641190,0.17839683,25779.0,25778.0,5.12359248]
[1693955641409,0.17839683,25779.0,25778.0,5.12377248]
[1693955642023,0.17839683,25779.0,25778.0,5.12371248]
[1693955642223,0.17839683,25779.0,25778.0,5.12407248]
[1693955642464,0.17839683,25779.0,25778.0,5.12467248]
[1693955642636,0.17839683,25779.0,25778.0,5.12473248]
[1693955642844,0.17839683,25779.0,25778.0,5.12479248]
[1693955643082,0.17839683,25779.0,25778.0,5.13109248]
[1693955643207,0.17839683,25779.0,25778.0,5.13103248]
[1693955643406,0.17839683,25779.0,25778.0,5.13025248]
[1693955643651,0.17839683,25779.0,25778.0,5.13013248]
[1693955643865,0.17839683,25779.0,25778.0,5.13007248]
[1693955644177,0.17839683,25779.0,25778.0,5.12977248]
[1693955644424,0.17839683,25779.0,25778.0,5.12959248]
[1693955644628,0.17839683,25779.0,25778.0,5.12977248]
[1693955644837,0.17839683,25779.0,25778.0,5.82947248]
[1693955644988,0.17839683,25779.0,25778.0,5.82941248]
[1693955645218,0.17839683,25779.0,25778.0,5.82911248]
[1693955645390,0.17839683,25779.0,25778.0,5.82881248]
[1693955645592,0.17839683,25779.0,25778.0,5.82935248]
[1693955645967,0.17839683,25779.0,25778.0,5.82923248]
[1693955646175,0.17839683,25779.0,25778.0,5.82917248]
[1693955646375,0.17839683,25779.0,25778.0,5.82959248]
[1693955646577,0.17839683,25779.0,25778.0,5.82947248]
[1693955647028,0.17839683,25779.0,25778.0,5.82941248]
[1693955647242,0.17839683,25779.0,25778.0,5.82953248]
[1693955647422,0.17839683,25779.0,25778.0,6.01609164]
[1693955647622,0.17839683,25779.0,25778.0,6.01519164]
[1693955647843,0.17839683,25779.0,25778.0,6.01525164]
[1693955648043,0.17839683,25779.0,25778.0,6.01273164]
[1693955648223,0.17839683,25779.0,25778.0,6.01231164]
[1693955648562,0.17839683,25779.0,25778.0,6.01207164]
[1693955649148,0.17839683,25779.0,25778.0,6.01231164]
[1693955649327,0.17839683,25779.0,25778.0,5.87338227]
[1693955649567,0.17839683,25779.0,25778.0,5.87218227]
[1693955649772,0.17839683,25779.0,25778.0,5.87134227]
[1693955650039,0.17839683,25779.0,25778.0,5.87110227]
[1693955650422,0.17839683,25779.0,25778.0,5.87104227]
[1693955650630,0.17839683,25779.0,25778.0,5.87116227]
[1693955650845,0.17839683,25779.0,25778.0,5.87146227]
[1693955651219,0.17839683,25779.0,25778.0,5.87152227]
[1693955651425,0.17839683,25779.0,25778.0,6.10367122]
[1693955651583,0.17839683,25779.0,25778.0,6.0066293]
[1693955652035,0.17839683,25779.0,25778.0,5.90958738]
[1693955652244,0.17839683,25779.0,25778.0,5.90952738]
[1693955652438,0.17839683,25779.0,25778.0,5.72362822]
[1693955652597,0.17839683,25779.0,25778.0,5.72356822]
[1693955652807,0.17839683,25779.0,25778.0,5.72350822]
[1693955653010,0.17839683,25779.0,25778.0,5.72356822]
[1693955653222,0.17839683,25779.0,25778.0,5.87753206]
[1693955653634,0.17839683,25779.0,25778.0,5.78433014]
[1693955653835,0.17839683,25779.0,25778.0,5.78457014]
[1693955654038,0.17839683,25779.0,25778.0,5.78403014]
[1693955654463,0.17839683,25779.0,25778.0,5.78373014]
[1693955654666,0.17839683,25779.0,25778.0,5.78367014]
[1693955654868,0.17839683,25779.0,25778.0,5.88065206]
[1693955655070,0.17839683,25779.0,25778.0,5.88101206]
[1693955655320,0.17839683,25779.0,25778.0,5.88071206]
[1693955655492,0.17839683,25779.0,25778.0,5.78397014]
[1693955655894,0.17839683,25779.0,25778.0,5.78391014]
[1693955656531,0.17839683,25779.0,25778.0,5.78355014]
[1693955656838,0.17839683,25779.0,25778.0,4.98632822]
[1693955657048,0.17839683,25779.0,25778.0,4.8892263]
[1693955657249,0.17839683,25779.0,25778.0,4.8889263]
[1693955657455,0.17839683,25779.0,25778.0,4.8888663]
[1693955657681,0.17839683,25779.0,25778.0,4.8890463]
[1693955657864,0.17839683,25779.0,25778.0,4.8893463]
[1693955658014,0.17839683,25779.0,25778.0,4.8892863]
[1693955658233,0.17839683,25779.0,25778.0,5.18158965]
[1693955658449,0.17839683,25779.0,25778.0,5.18218965]
[1693955658628,0.17839683,25779.0,25778.0,5.08424773]
[1693955658826,0.17839683,25779.0,25778.0,5.08406773]
[1693955659055,0.17839683,25779.0,25778.0,5.08400773]
[1693955659232,0.17839683,25779.0,25778.0,5.08394773]
[1693955659427,0.17839683,25779.0,25778.0,5.08346773]
[1693955659644,0.17839683,25779.0,25778.0,5.08334773]
[1693955659841,0.17839683,25779.0,25778.0,4.40539706]
[1693955660182,0.17839683,25779.0,25778.0,5.18125206]
[1693955660403,0.17839683,25779.0,25778.0,5.08427014]
[1693955660607,0.17839683,25779.0,25778.0,5.08397014]
[1693955660798,0.17839683,25779.0,25778.0,5.08391014]
[1693955660976,0.17839683,25779.0,25778.0,5.08421014]
[1693955661185,0.17839683,25779.0,25778.0,5.08397014]
[1693955661347,0.17839683,25779.0,25778.0,5.08403014]
[1693955661545,0.17839683,25779.0,25778.0,4.98704822]
[1693955661975,0.17839683,25779.0,25778.0,4.8900063]
[1693955662398,0.17839683,25779.0,25778.0,4.8898863]
[1693955662574,0.17839683,25779.0,25778.0,4.8898263]
[1693955663010,0.17839683,25779.0,25778.0,4.8897663]
[1693955663172,0.17839683,25779.0,25778.0,4.8895263]
[1693955663367,0.17839683,25779.0,25778.0,4.8894663]
[1693955663594,0.17839683,25779.0,25778.0,4.8889863]
[1693955664347,0.17839683,25779.0,25778.0,4.79188438]
[1693955664564,0.17839683,25779.0,25778.0,4.79182438]
[1693955664742,0.17839683,25779.0,25778.0,4.79176438]
[1693955665105,0.17839683,25779.0,25778.0,4.79170438]
[1693955665305,0.17839683,25779.0,25778.0,4.79104438]
[1693955665506,0.17839683,25779.0,25778.0,4.91034438]
[1693955665706,0.17839683,25779.0,25778.0,4.81318246]
[1693955666654,0.17839683,25779.0,25778.0,4.81288246]
[1693955666830,0.17839683,25779.0,25778.0,4.81468246]
[1693955667331,0.17839683,25779.0,25778.0,4.71764054]
[1693955667536,0.17839683,25779.0,25778.0,4.62903206]
[1693955667738,0.17839683,25779.0,25778.0,4.62897206]
[1693955667950,0.17839683,25779.0,25778.0,4.62861206]
[1693955668152,0.17839683,25779.0,25778.0,4.62837206]
[1693955668352,0.17839683,25779.0,25778.0,4.62825206]
[1693955668505,0.17839683,25779.0,25778.0,4.53355014]
[1693955668719,0.17839683,25779.0,25778.0,4.53343014]
[1693955669098,0.17839683,25779.0,25778.0,4.53319014]
[1693955669295,0.17839683,25779.0,25778.0,4.53313014]
[1693955669505,0.17839683,25779.0,25778.0,4.83313014]
[1693955669720,0.17839683,25779.0,25778.0,4.83379014]
[1693955669927,0.17839683,25779.0,25778.0,4.83373014]
[1693955670149,0.17839683,25779.0,25778.0,4.73656822]
[1693955670672,0.17839683,25779.0,25778.0,4.73626822]
[1693955671090,0.17839683,25779.0,25778.0,4.73620822]
[1693955671646,0.17839683,25779.0,25778.0,4.6388663]
[1693955671791,0.17839683,25779.0,25778.0,4.6384463]
[1693955671959,0.17839683,25779.0,25778.0,4.6381463]
[1693955672186,0.17839683,25779.0,25778.0,4.6380263]
[1693955672394,0.17839683,25779.0,25778.0,4.6384463]
[1693955672819,0.17839683,25779.0,25778.0,4.6383263]
[1693955673013,0.17839683,25779.0,25778.0,4.6379663]
[1693955673251,0.17839683,25779.0,25778.0,4.54104438]
[1693955673449,0.17839683,25779.0,25778.0,4.30733543]
[1693955673649,0.17839683,25779.0,25778.0,4.30739543]
[1693955673850,0.17839683,25779.0,25778.0,4.30709543]
[1693955674070,0.17839683,25779.0,25778.0,4.30685543]
[1693955674641,0.17839683,25779.0,25778.0,4.20987351]
[1693955674847,0.17839683,25779.0,25778.0,4.20981351]
[1693955675222,0.17839683,25779.0,25778.0,4.44242085]
[1693955675487,0.17839683,25779.0,25778.0,4.20987351]
[1693955675625,0.17839683,25779.0,25778.0,4.20981351]
[1693955676025,0.17839683,25779.0,25778.0,4.11283159]
[1693955676478,0.17839683,25779.0,25778.0,4.11451159]
[1693955676834,0.17839683,25779.0,25778.0,4.11445159]
[1693955677437,0.17839683,25779.0,25778.0,4.01740967]
[1693955677632,0.17839683,25779.0,25778.0,4.01746967]
[1693955677855,0.17839683,25779.0,25778.0,4.01770967]
[1693955678069,0.17839683,25779.0,25778.0,4.01752967]
[1693955678266,0.17839683,25779.0,25778.0,4.01746967]
[1693955678969,0.17839683,25779.0,25778.0,3.92054775]
[1693955679225,0.17839683,25779.0,25778.0,3.92198775]
[1693955679676,0.17839683,25779.0,25778.0,3.92066775]
[1693955680181,0.17839683,25779.0,25778.0,3.92054775]
[1693955680356,0.17839683,25779.0,25778.0,3.92126775]
[1693955680709,0.17839683,25779.0,25778.0,3.82266583]
[1693955680855,0.17839683,25779.0,25778.0,3.82236583]
[1693955681447,0.17839683,25779.0,25778.0,3.82230583]
[1693955681713,0.17839683,25779.0,25778.0,3.82236583]
[1693955682091,0.17839683,25779.0,25778.0,3.72526391]
[1693955682467,0.17839683,25779.0,25778.0,3.72532391]
[1693955682647,0.17839683,25779.0,25778.0,3.72508391]
[1693955682989,0.17839683,25779.0,25778.0,4.42508391]
[1693955683376,0.17839683,25779.0,25778.0,4.42502391]
[1693955683575,0.17839683,25779.0,25778.0,4.24396448]
[1693955683777,0.17839683,25779.0,25778.0,4.24390448]
[1693955683978,0.17839683,25779.0,25778.0,4.24666448]
[1693955684175,0.17839683,25779.0,25778.0,4.24636448]
[1693955684336,0.17839683,25779.0,25778.0,4.24654448]
[1693955684543,0.17839683,25779.0,25778.0,4.24618448]
[1693955684795,0.17839683,25779.0,25778.0,4.24624448]
[1693955684990,0.17839683,25779.0,25778.0,4.14926256]
[1693955685240,0.17839683,25779.0,25778.0,4.14920256]
[1693955685438,0.17839683,25779.0,25778.0,4.14896256]
[1693955685762,0.17839683,25779.0,25778.0,4.14902256]
[1693955685955,0.17839683,25779.0,25778.0,4.14926256]
[1693955686339,0.17839683,25779.0,25778.0,4.15070256]
[1693955686685,0.17839683,25779.0,25778.0,4.05198064]
[1693955686961,0.17839683,25779.0,25778.0,4.05204064]
[1693955687117,0.17839683,25779.0,25778.0,4.05198064]
[1693955687507,0.17839683,25779.0,25778.0,4.05192064]
[1693955687707,0.17839683,25779.0,25778.0,4.05198064]
[1693955687907,0.17839683,25779.0,25778.0,3.95547872]
[1693955688288,0.17839683,25779.0,25778.0,3.95541872]
[1693955688700,0.17839683,25779.0,25778.0,3.95523872]
[1693955688850,0.17839683,25779.0,25778.0,3.95445872]
[1693955689053,0.17839683,25779.0,25778.0,3.95457872]
[1693955689254,0.17839683,25779.0,25778.0,3.95439872]
[1693955689458,0.17839683,25779.0,25778.0,3.8572968]
[1693955689671,0.17839683,25779.0,25778.0,3.8574768]
[1693955689852,0.17839683,25779.0,25778.0,3.8574168]
[1693955690060,0.17839683,25779.0,25778.0,3.8573568]
[1693955690259,0.17839683,25779.0,25778.0,3.8574168]
[1693955690438,0.17839683,25779.0,25778.0,3.8585568]
[1693955690639,0.17839683,25779.0,25778.0,3.8584368]
[1693955690834,0.17839683,25779.0,25778.0,3.76145488]
[1693955691058,0.17839683,25779.0,25778.0,3.76139488]
[1693955691264,0.17839683,25779.0,25778.0,3.76133488]
[1693955691644,0.17839683,25779.0,25778.0,3.76121488]
[1693955692304,0.17839683,25779.0,25778.0,3.92525027]
[1693955692835,0.17839683,25779.0,25778.0,3.92531027]
[1693955693024,0.17839683,25779.0,25778.0,3.92525027]
[1693955693185,0.17839683,25779.0,25778.0,3.92501027]
[1693955693379,0.17839683,25779.0,25778.0,3.92453027]
[1693955693574,0.17839683,25779.0,25778.0,3.92501027]
[1693955693899,0.17839683,25779.0,25778.0,3.82724835]
[1693955694101,0.17839683,25779.0,25778.0,3.82682835]
[1693955694761,0.17839683,25779.0,25778.0,3.82688835]
[1693955694969,0.17839683,25779.0,25778.0,3.82682835]
[1693955695168,0.17839683,25779.0,25778.0,3.14795527]
[1693955695467,0.17839683,25779.0,25778.0,3.92369027]
[1693955695666,0.17839683,25779.0,25778.0,3.92393027]
[1693955695868,0.17839683,25779.0,25778.0,3.92369027]
[1693955696434,0.17839683,25779.0,25778.0,3.92423027]
[1693955696634,0.17839683,25779.0,25778.0,3.82688835]
[1693955696975,0.17839683,25779.0,25778.0,3.82682835]
[1693955697547,0.17839683,25779.0,25778.0,3.82712835]
[1693955698039,0.17839683,25779.0,25778.0,3.82706835]
[1693955698239,0.17839683,25779.0,25778.0,3.72996643]
[1693955698480,0.17839683,25779.0,25778.0,3.72936643]
[1693955698715,0.17839683,25779.0,25778.0,3.72888643]
[1693955698921,0.17839683,25779.0,25778.0,3.72894643]
[1693955699128,0.17839683,25779.0,25778.0,3.72888643]
[1693955699329,0.17839683,25779.0,25778.0,3.72876643]
[1693955699531,0.17839683,25779.0,25778.0,3.72870643]
[1693955699712,0.17839683,25779.0,25778.0,3.63166451]
[1693955699894,0.17839683,25779.0,25778.0,3.63172451]
[1693955700092,0.17839683,25779.0,25778.0,3.63064451]
[1693955700292,0.17839683,25779.0,25778.0,2.92902451]
[1693955700589,0.17839683,25779.0,25778.0,2.92650451]
[1693955700911,0.17839683,25779.0,25778.0,2.92644451]
[1693955701237,0.17839683,25779.0,25778.0,2.86984528]
[1693955701415,0.17839683,25779.0,25778.0,2.86966528]
[1693955701731,0.17839683,25779.0,25778.0,2.86996528]
[1693955701871,0.17839683,25779.0,25778.0,2.87002528]
[1693955702073,0.17839683,25779.0,25778.0,2.86996528]
[1693955702301,0.17839683,25779.0,25778.0,2.77244336]
[1693955702499,0.17839683,25779.0,25778.0,2.77286336]
[1693955702842,0.17839683,25779.0,25778.0,2.77328336]
[1693955703058,0.17839683,25779.0,25778.0,2.77364336]
[1693955703269,0.17839683,25779.0,25778.0,2.77358336]
[1693955703465,0.17839683,25779.0,25778.0,2.79794336]
[1693955703707,0.18039683,25779.0,25778.0,2.72290144]
[1693955703905,0.17939683,25779.0,25778.0,2.89426769]
[1693955704065,0.17939683,25779.0,25778.0,2.89638769]
[1693955704262,0.17939683,25779.0,25778.0,2.89644769]
[1693955704669,0.17939683,25779.0,25778.0,2.89650769]
[1693955704934,0.17939683,25779.0,25778.0,2.89716769]
[1693955705135,0.17939683,25779.0,25778.0,2.89722769]
[1693955705291,0.17939683,25779.0,25778.0,2.80030577]
[1693955705495,0.18039683,25779.0,25778.0,2.82242577]
[1693955705693,0.18039683,25779.0,25778.0,2.82230577]
[1693955705898,0.18039683,25779.0,25778.0,2.82236577]
[1693955706236,0.18039683,25779.0,25778.0,2.82248577]
[1693955706438,0.18039683,25779.0,25778.0,2.82254577]
[1693955706639,0.18039683,25779.0,25778.0,2.72562385]
[1693955706995,0.18039683,25779.0,25778.0,2.72568385]
[1693955707393,0.18039683,25779.0,25778.0,2.72580385]
[1693955707599,0.18039683,25779.0,25778.0,2.72586385]
[1693955707803,0.18039683,25779.0,25778.0,2.72946385]
[1693955708022,0.18039683,25779.0,25778.0,2.73210385]
[1693955708229,0.18039683,25779.0,25778.0,2.50556769]
[1693955708719,0.18039683,25779.0,25778.0,2.80500372]
[1693955708920,0.18039683,25779.0,25778.0,2.80482372]
[1693955709304,0.18039683,25779.0,25778.0,2.80530372]
[1693955709734,0.18039683,25779.0,25778.0,2.80536372]
[1693955709965,0.18039683,25779.0,25778.0,2.80560372]
[1693955710169,0.18039683,25779.0,25778.0,2.7086218]
[1693955710343,0.18039683,25779.0,25778.0,3.0086218]
[1693955710550,0.18039683,25779.0,25778.0,3.1291218]
[1693955710755,0.18039683,25779.0,25778.0,3.1291818]
[1693955711527,0.18039683,25779.0,25778.0,3.1290018]
[1693955711726,0.18039683,25779.0,25778.0,3.22598372]
[1693955711976,0.18039683,25779.0,25778.0,3.22532372]
[1693955712530,0.18039683,25779.0,25778.0,3.22538372]
[1693955712937,0.18039683,25779.0,25778.0,3.22544372]
[1693955713187,0.18039683,25779.0,25778.0,3.1285218]
[1693955713390,0.18039683,25779.0,25778.0,3.1283418]
[1693955713764,0.18039683,25779.0,25778.0,3.1289418]
[1693955713963,0.18039683,25779.0,25778.0,3.1299018]
[1693955714206,0.18039683,25779.0,25778.0,3.1307418]
[1693955714540,0.18039683,25779.0,25778.0,3.1356018]
[1693955714742,0.18039683,25779.0,25778.0,3.1354218]
[1693955714953,0.18039683,25779.0,25778.0,3.03825988]
[1693955715195,0.18039683,25779.0,25778.0,3.23162372]
[1693955715343,0.18039683,25779.0,25778.0,3.23150372]
[1693955715548,0.18039683,25779.0,25778.0,3.23222372]
[1693955715878,0.18039683,25779.0,25778.0,3.23276372]
[1693955716095,0.18039683,25779.0,25778.0,3.44231936]
[1693955716322,0.18039683,25779.0,25778.0,3.44345936]
[1693955716512,0.18039683,25779.0,25778.0,3.39434909]
[1693955716674,0.18039683,25779.0,25778.0,3.39410909]
[1693955716879,0.18039683,25779.0,25778.0,3.39308909]
[1693955717112,0.18039683,25779.0,25778.0,3.39188909]
[1693955717315,0.18039683,25779.0,25778.0,3.39374909]
[1693955717525,0.18039683,25779.0,25778.0,3.39302909]
[1693955717940,0.18039683,25779.0,25778.0,3.29676717]
[1693955718139,0.18039683,25779.0,25778.0,3.27216865]
[1693955718315,0.18039683,25779.0,25778.0,3.78469153]
[1693955718517,0.18039683,25779.0,25778.0,3.78523153]
[1693955718718,0.18039683,25779.0,25778.0,3.78469153]
[1693955718935,0.18039683,25779.0,25778.0,3.78487153]
[1693955719140,0.18039683,25779.0,25778.0,3.78493153]
[1693955719343,0.18039683,25779.0,25778.0,3.98287085]
[1693955719545,0.18039683,25779.0,25778.0,4.135912]
[1693955719764,0.18039683,25779.0,25778.0,4.135792]
[1693955719973,0.18039683,25779.0,25778.0,4.135912]
[1693955720223,0.18039683,25779.0,25778.0,4.136212]
[1693955720632,0.18039683,25779.0,25778.0,4.135252]
[1693955720840,0.18039683,25779.0,25778.0,4.03833008]
[1693955721042,0.18039683,25779.0,25778.0,4.03827008]
[1693955721241,0.18039683,25779.0,25778.0,4.03863008]
[1693955721493,0.18039683,25779.0,25778.0,3.84045076]
[1693955721691,0.18039683,25779.0,25778.0,3.84003076]
[1693955722184,0.18039683,25779.0,25778.0,3.84009076]
[1693955722390,0.18039683,25779.0,25778.0,3.93222613]
[1693955722919,0.18039683,25779.0,25778.0,3.93252613]
[1693955723048,0.18039683,25779.0,25778.0,3.93258613]
[1693955723259,0.18039683,25779.0,25778.0,3.93264613]
[1693955723462,0.18039683,25779.0,25778.0,3.93270613]
[1693955723893,0.18039683,25779.0,25778.0,3.83572421]
[1693955724428,0.18039683,25779.0,25778.0,3.83554421]
[1693955724636,0.18039683,25779.0,25778.0,3.83524421]
[1693955725108,0.18039683,25779.0,25778.0,3.83572421]
[1693955725299,0.18039683,25779.0,25778.0,3.83578421]
[1693955725413,0.18039683,25779.0,25778.0,3.73868229]
[1693955725615,0.18039683,25779.0,25778.0,3.73874229]
[1693955725830,0.18039683,25779.0,25778.0,3.73880229]
[1693955726063,0.18039683,25779.0,25778.0,3.73886229]
[1693955726262,0.18039683,25779.0,25778.0,3.73856229]
[1693955726418,0.18039683,25779.0,25778.0,3.549265]
[1693955726846,0.18039683,25779.0,25778.0,3.63946971]
[1693955727164,0.18039683,25779.0,25778.0,3.47996328]
[1693955727488,0.18039683,25779.0,25778.0,3.47990328]
[1693955727666,0.18039683,25779.0,25778.0,3.48002328]
[1693955727865,0.18039683,25779.0,25778.0,3.48008328]
[1693955728073,0.18039683,25779.0,25778.0,3.48014328]
[1693955728270,0.18039683,25779.0,25778.0,3.38316136]
[1693955728521,0.18039683,25779.0,25778.0,3.38322136]
[1693955728635,0.18039683,25779.0,25778.0,3.38304136]
[1693955728862,0.18039683,25779.0,25778.0,3.38310136]
[1693955729061,0.18039683,25779.0,25778.0,3.38280136]
[1693955729256,0.18039683,25779.0,25778.0,3.38286136]
[1693955729606,0.18039683,25779.0,25778.0,3.38142136]
[1693955729801,0.18039683,25779.0,25778.0,3.28635944]
[1693955730020,0.18039683,25779.0,25778.0,3.28557944]
[1693955730209,0.18039683,25779.0,25778.0,3.28563944]
[1693955730381,0.18039683,25779.0,25778.0,3.28551944]
[1693955730594,0.18039683,25779.0,25778.0,3.40745944]
[1693955730803,0.18039683,25779.0,25778.0,3.40709944]
[1693955731003,0.18039683,25779.0,25778.0,3.40607944]
[1693955731215,0.18039683,25779.0,25778.0,3.30855752]
[1693955731371,0.18039683,25779.0,25778.0,3.30789752]
[1693955731569,0.18039683,25779.0,25778.0,3.30489752]
[1693955731882,0.18039683,25779.0,25778.0,3.30519752]
[1693955732269,0.18039683,25779.0,25778.0,3.30537752]
[1693955732454,0.18039683,25779.0,25778.0,3.30447752]
[1693955732689,0.18039683,25779.0,25778.0,2.69906828]
[1693955732869,0.18039683,25779.0,25778.0,3.47504328]
[1693955733074,0.18039683,25779.0,25778.0,3.47540328]
[1693955733390,0.18039683,25779.0,25778.0,2.77576328]
[1693955733593,0.18039683,25779.0,25778.0,2.77558328]
[1693955733888,0.18039683,25779.0,25778.0,2.77570328]
[1693955734131,0.18039683,25779.0,25778.0,2.67878136]
[1693955734258,0.18039683,25779.0,25778.0,2.67884136]
[1693955734933,0.18039683,25779.0,25778.0,2.67896136]
[1693955735136,0.18039683,25779.0,25778.0,2.67944136]
[1693955735620,0.18039683,25779.0,25778.0,2.58251944]
[1693955735798,0.18039683,25779.0,25778.0,2.77654328]
[1693955736175,0.18039683,25779.0,25778.0,2.77642328]
[1693955736357,0.18039683,25779.0,25778.0,2.77648328]
[1693955736561,0.18039683,25779.0,25778.0,2.77654328]
[1693955736996,0.18039683,25779.0,25778.0,2.77660328]
[1693955737200,0.18039683,25779.0,25778.0,2.7306506]
[1693955737819,0.18039683,25779.0,25778.0,2.7313106]
[1693955737980,0.18039683,25779.0,25778.0,2.7313706]
[1693955738387,0.18039683,25779.0,25778.0,2.7312506]
[1693955738583,0.18039683,25779.0,25778.0,2.63432868]
[1693955738783,0.18039683,25779.0,25778.0,2.71806119]
[1693955739008,0.18039683,25779.0,25778.0,2.71812119]
[1693955739527,0.18039683,25779.0,25778.0,2.71824119]
[1693955739731,0.18039683,25779.0,25778.0,2.71818119]
[1693955739941,0.18039683,25779.0,25778.0,2.71824119]
[1693955740151,0.18039683,25779.0,25778.0,2.86517338]
[1693955740594,0.18039683,25779.0,25778.0,2.86541338]
[1693955740931,0.18039683,25779.0,25778.0,2.86547338]
[1693955741395,0.18039683,25779.0,25778.0,2.86553338]
[1693955741641,0.18039683,25779.0,25778.0,2.76831146]
[1693955741849,0.18039683,25779.0,25778.0,2.76861146]
[1693955741980,0.18039683,25779.0,25778.0,2.76867146]
[1693955742331,0.18039683,25779.0,25778.0,2.76873146]
[1693955742732,0.18039683,25779.0,25778.0,2.76771146]
[1693955743028,0.18039683,25779.0,25778.0,2.67072954]
[1693955743255,0.18039683,25779.0,25778.0,2.67078954]
[1693955743389,0.18039683,25779.0,25778.0,2.67096954]
[1693955743571,0.18039683,25779.0,25778.0,2.67090954]
[1693955743766,0.18039683,25779.0,25778.0,2.73712958]
[1693955743972,0.18039683,25779.0,25778.0,2.73724958]
[1693955744337,0.18039683,25779.0,25778.0,2.64020766]
[1693955744534,0.18039683,25779.0,25778.0,2.64272766]
[1693955744868,0.18039683,25779.0,25778.0,2.64278766]
[1693955745339,0.18039683,25779.0,25778.0,2.64542766]
[1693955745539,0.18039683,25779.0,25778.0,2.64614766]
[1693955745715,0.18039683,25779.0,25778.0,2.54916574]
[1693955745915,0.18039683,25779.0,25778.0,2.54886574]
[1693955746091,0.18039683,25779.0,25778.0,2.54880574]
[1693955746560,0.18039683,25779.0,25778.0,2.54910574]
[1693955746768,0.18039683,25779.0,25778.0,2.54916574]
[1693955746939,0.18039683,25779.0,25778.0,2.54994574]
[1693955747143,0.18039683,25779.0,25778.0,2.45296382]
[1693955747362,0.18039683,25779.0,25778.0,3.15446382]
[1693955747499,0.18039683,25779.0,25778.0,3.15380382]
[1693955747913,0.18039683,25779.0,25778.0,3.27634382]
[1693955748201,0.18039683,25779.0,25778.0,3.32264076]
[1693955748425,0.18039683,25779.0,25778.0,3.32132076]
[1693955748646,0.18039683,25779.0,25778.0,3.50088373]
[1693955748847,0.18039683,25779.0,25778.0,3.50070373]
[1693955749079,0.18039683,25779.0,25778.0,3.50076373]
[1693955749250,0.18039683,25779.0,25778.0,3.50058373]
[1693955749427,0.18039683,25779.0,25778.0,3.50034373]
[1693955749629,0.18039683,25779.0,25778.0,3.49974373]
[1693955749806,0.18039683,25779.0,25778.0,3.49926373]
[1693955750021,0.18039683,25779.0,25778.0,3.40168181]
[1693955750231,0.18039683,25779.0,25778.0,3.40150181]
[1693955750445,0.18039683,25779.0,25778.0,3.39964181]
[1693955750669,0.18039683,25779.0,25778.0,3.39958181]
[1693955750971,0.18039683,25779.0,25778.0,3.40030181]
[1693955751146,0.18039683,25779.0,25778.0,3.39958181]
[1693955751343,0.18039683,25779.0,25778.0,3.39952181]
[1693955751696,0.18039683,25779.0,25778.0,3.49650373]
[1693955751893,0.18039683,25779.0,25778.0,3.49608373]
[1693955752108,0.18039683,25779.0,25778.0,3.49602373]
[1693955752521,0.18039683,25779.0,25778.0,3.49596373]
[1693955752671,0.18039683,25779.0,25778.0,3.49602373]
[1693955752869,0.18039683,25779.0,25778.0,3.78562708]
[1693955753254,0.18039683,25779.0,25778.0,3.78472708]